[Event "*** SCC Grand Prix: Titled Tuesday Blitz"]
[Site "Chess.com"]
[Date "2020.10.06"]
[Round "7"]
[White "Reader777"]
[Black "sergoy"]
[Result "1/2-1/2"]
[WhiteElo "2659"]
[BlackElo "2857"]
[TimeControl "180+1"]
[EndTime "11:20:36 PDT"]
[Termination "Game drawn by repetition"]

1. d4 {[%clk 0:03:00.9]} 1... Nf6 {[%clk 0:02:31.8]} 2. c4 {[%clk 0:03:00.4]}
2... e6 {[%clk 0:02:32.2]} 3. g3 {[%clk 0:03:00]} 3... c5 {[%clk 0:02:32.3]} 4.
Nf3 {[%clk 0:02:59]} 4... cxd4 {[%clk 0:02:32.2]} 5. Nxd4 {[%clk 0:02:59.4]}
5... d5 {[%clk 0:02:33.1]} 6. Bg2 {[%clk 0:02:58.9]} 6... e5 {[%clk 0:02:33.7]}
7. Nf3 {[%clk 0:02:58.8]} 7... d4 {[%clk 0:02:34.6]} 8. O-O {[%clk 0:02:58.6]}
8... Nc6 {[%clk 0:02:35.2]} 9. e3 {[%clk 0:02:58.8]} 9... Be7 {[%clk 0:02:34.4]}
10. exd4 {[%clk 0:02:59]} 10... exd4 {[%clk 0:02:35.3]} 11. b4 {[%clk
0:02:58.8]} 11... Bxb4 {[%clk 0:02:32.7]} 12. Nxd4 {[%clk 0:02:58]} 12... O-O
{[%clk 0:02:28.7]} 13. Nxc6 {[%clk 0:02:56.7]} 13... Qxd1 {[%clk 0:02:27.3]} 14.
Rxd1 {[%clk 0:02:56.2]} 14... bxc6 {[%clk 0:02:27.7]} 15. Bxc6 {[%clk
0:02:56.4]} 15... Bg4 {[%clk 0:02:27.6]} 16. Bxa8 {[%clk 0:02:34.1]} 16... Bxd1
{[%clk 0:02:26.9]} 17. Bg2 {[%clk 0:02:32.8]} 17... Re8 {[%clk 0:02:26.3]} 18.
Bd2 {[%clk 0:02:29.7]} 18... Bc5 {[%clk 0:01:56.6]} 19. Nc3 {[%clk 0:02:28.4]}
19... Bg4 {[%clk 0:01:57.5]} 20. Re1 {[%clk 0:02:18]} 20... Rd8 {[%clk
0:01:56.9]} 21. Nd5 {[%clk 0:02:15.4]} 21... Be6 {[%clk 0:01:53.5]} 22. Bg5
{[%clk 0:02:07.9]} 22... Bxd5 {[%clk 0:01:51.7]} 23. Bxd5 {[%clk 0:01:57.9]}
23... h6 {[%clk 0:01:51.2]} 24. Bxf6 {[%clk 0:01:54.3]} 24... gxf6 {[%clk
0:01:52.1]} 25. Rb1 {[%clk 0:01:54.4]} 25... Bb6 {[%clk 0:01:51]} 26. Re1 {[%clk
0:01:51.2]} 26... Kf8 {[%clk 0:01:50.4]} 27. Kg2 {[%clk 0:01:51.3]} 27... Rb8
{[%clk 0:01:49]} 28. Rb1 {[%clk 0:01:42.9]} 28... Re8 {[%clk 0:01:49]} 29. Kf3
{[%clk 0:01:37.7]} 29... Re5 {[%clk 0:01:49]} 30. Rb2 {[%clk 0:01:30.7]} 30...
h5 {[%clk 0:01:46]} 31. h4 {[%clk 0:01:29.1]} 31... Rf5+ {[%clk 0:01:43.6]} 32.
Kg2 {[%clk 0:01:28.9]} 32... Re5 {[%clk 0:01:43.9]} 33. Rd2 {[%clk 0:01:22.4]}
33... Ba5 {[%clk 0:01:40.9]} 34. Rc2 {[%clk 0:01:20.4]} 34... Bb6 {[%clk
0:01:39.5]} 35. Bf3 {[%clk 0:01:19.9]} 35... Ra5 {[%clk 0:01:35.4]} 36. Bd5
{[%clk 0:01:12]} 36... Kg7 {[%clk 0:01:28.4]} 37. Re2 {[%clk 0:01:11.1]} 37...
Bc5 {[%clk 0:01:26.3]} 38. Bf3 {[%clk 0:01:07]} 38... Bb6 {[%clk 0:01:23.4]} 39.
Bd5 {[%clk 0:01:03.5]} 39... Bc5 {[%clk 0:01:19.5]} 40. Rb2 {[%clk 0:00:59.6]}
40... Bb6 {[%clk 0:01:18.5]} 41. Rb5 {[%clk 0:00:51.9]} 41... Rxb5 {[%clk
0:01:16.7]} 42. cxb5 {[%clk 0:00:51.9]} 42... f5 {[%clk 0:01:17.2]} 43. Bf3
{[%clk 0:00:51]} 43... Kg6 {[%clk 0:01:17.2]} 44. Kf1 {[%clk 0:00:51.3]} 44...
Bc5 {[%clk 0:01:16.6]} 45. Ke2 {[%clk 0:00:51.3]} 45... Bb6 {[%clk 0:01:17]} 46.
a4 {[%clk 0:00:51.4]} 46... Ba5 {[%clk 0:01:16]} 47. Kd3 {[%clk 0:00:48.5]}
47... Be1 {[%clk 0:01:15.8]} 48. Ke3 {[%clk 0:00:48.7]} 48... Ba5 {[%clk
0:01:14.1]} 49. Bd5 {[%clk 0:00:46.9]} 49... Bb6+ {[%clk 0:01:12.6]} 50. Ke2
{[%clk 0:00:46.1]} 50... Kf6 {[%clk 0:01:11.9]} 51. Bc6 {[%clk 0:00:43.9]} 51...
Kg6 {[%clk 0:01:11.4]} 52. f4 {[%clk 0:00:32.9]} 52... Ba5 {[%clk 0:01:11.3]}
53. Bf3 {[%clk 0:00:32.2]} 53... Bb4 {[%clk 0:01:09.4]} 54. Bd5 {[%clk
0:00:27.6]} 54... Ba5 {[%clk 0:01:09]} 55. Bc6 {[%clk 0:00:26.5]} 55... Bb4
{[%clk 0:01:08.7]} 56. Bd7 {[%clk 0:00:20.2]} 56... Kf6 {[%clk 0:01:07.6]} 57.
Bc6 {[%clk 0:00:19.4]} 57... Kg6 {[%clk 0:01:07.1]} 58. Kd1 {[%clk 0:00:14.3]}
58... Ba5 {[%clk 0:01:05.5]} 59. Bf3 {[%clk 0:00:14.1]} 59... Bb4 {[%clk
0:01:05.5]} 60. Ke2 {[%clk 0:00:13]} 60... Ba5 {[%clk 0:01:05.1]} 61. Bd5 {[%clk
0:00:11.3]} 61... Kf6 {[%clk 0:01:04.4]} 62. Kf3 {[%clk 0:00:10.8]} 62... Kg6
{[%clk 0:01:04.2]} 63. Bc4 {[%clk 0:00:10.4]} 63... Bb4 {[%clk 0:01:04.5]} 64.
Bd3 {[%clk 0:00:09.4]} 64... Kf6 {[%clk 0:01:03.2]} 65. Bc2 {[%clk 0:00:08.4]}
65... Kg6 {[%clk 0:01:00.5]} 66. Ke3 {[%clk 0:00:08.7]} 66... Be1 {[%clk
0:00:59.2]} 67. Kf3 {[%clk 0:00:05.1]} 67... Kf6 {[%clk 0:00:59.1]} 68. Bd1
{[%clk 0:00:04.3]} 68... Kg6 {[%clk 0:00:57.1]} 69. Kg2 {[%clk 0:00:04.8]} 69...
Kh6 {[%clk 0:00:55.2]} 70. Bf3 {[%clk 0:00:05.6]} 70... Kg6 {[%clk 0:00:55.3]}
71. Bd5 {[%clk 0:00:05.7]} 71... Kf6 {[%clk 0:00:55]} 72. Bf3 {[%clk 0:00:05.5]}
72... Kg6 {[%clk 0:00:55.2]} 73. Be2 {[%clk 0:00:06]} 73... Kh6 {[%clk
0:00:54.7]} 74. Bc4 {[%clk 0:00:06.2]} 74... Kg6 {[%clk 0:00:54.5]} 75. Be2
{[%clk 0:00:06.5]} 75... Kh6 {[%clk 0:00:54.4]} 76. Bf3 {[%clk 0:00:06.8]} 76...
Kg6 {[%clk 0:00:53.5]} 1/2-1/2

[Event "*** SCC Grand Prix: Titled Tuesday Blitz"]
[Site "Chess.com"]
[Date "2020.10.06"]
[Round "7"]
[White "LedakovAlexandr"]
[Black "Aygehovit1992"]
[Result "1-0"]
[WhiteElo "2460"]
[BlackElo "2608"]
[TimeControl "180+1"]
[EndTime "11:20:37 PDT"]
[Termination "LedakovAlexandr won by resignation"]

1. d4 {[%clk 0:02:52.9]} 1... Nf6 {[%clk 0:02:58]} 2. Nf3 {[%clk 0:02:52.6]}
2... e6 {[%clk 0:02:58]} 3. Bg5 {[%clk 0:02:48.1]} 3... Be7 {[%clk 0:02:56.8]}
4. Nbd2 {[%clk 0:02:48.1]} 4... d5 {[%clk 0:02:56.6]} 5. e3 {[%clk 0:02:48.2]}
5... c5 {[%clk 0:02:56.3]} 6. c3 {[%clk 0:02:48]} 6... Nc6 {[%clk 0:02:56.4]} 7.
Ne5 {[%clk 0:02:48.6]} 7... Nxe5 {[%clk 0:02:55.2]} 8. dxe5 {[%clk 0:02:49.5]}
8... Nd7 {[%clk 0:02:55.3]} 9. Bf4 {[%clk 0:02:49.6]} 9... g5 {[%clk 0:02:54.1]}
10. Bg3 {[%clk 0:02:48.1]} 10... h5 {[%clk 0:02:54.4]} 11. h3 {[%clk 0:02:46]}
11... h4 {[%clk 0:02:54.8]} 12. Bh2 {[%clk 0:02:45.5]} 12... b6 {[%clk
0:02:54.6]} 13. Qc2 {[%clk 0:02:01.5]} 13... Bb7 {[%clk 0:02:53.3]} 14. O-O-O
{[%clk 0:02:00.6]} 14... Qc7 {[%clk 0:02:53.3]} 15. f4 {[%clk 0:01:53.5]} 15...
a5 {[%clk 0:02:37.3]} 16. Nf3 {[%clk 0:01:50.4]} 16... gxf4 {[%clk 0:02:36]} 17.
Bxf4 {[%clk 0:01:44.7]} 17... a4 {[%clk 0:02:36.3]} 18. a3 {[%clk 0:01:28.7]}
18... Ra5 {[%clk 0:02:25.1]} 19. c4 {[%clk 0:01:22.9]} 19... b5 {[%clk
0:02:15.6]} 20. cxd5 {[%clk 0:01:18.2]} 20... Bxd5 {[%clk 0:01:54.3]} 21. Rxd5
{[%clk 0:01:18.2]} 21... exd5 {[%clk 0:01:55.2]} 22. e6 {[%clk 0:01:18.1]} 22...
Bd6 {[%clk 0:01:55.5]} 23. exd7+ {[%clk 0:01:14.3]} 23... Kxd7 {[%clk
0:01:54.9]} 24. Qf5+ {[%clk 0:00:58.4]} 24... Kc6 {[%clk 0:01:54.7]} 25. Ne5+
{[%clk 0:00:58.2]} 25... Kb7 {[%clk 0:01:41.2]} 26. Qd3 {[%clk 0:00:33.1]} 26...
d4 {[%clk 0:01:28.5]} 27. Qe4+ {[%clk 0:00:33.2]} 27... Kb6 {[%clk 0:01:27.7]}
28. exd4 {[%clk 0:00:19.7]} 28... cxd4+ {[%clk 0:01:28.6]} 29. Kb1 {[%clk
0:00:18.3]} 29... Rd8 {[%clk 0:01:17.3]} 30. Nd3 {[%clk 0:00:15.4]} 30... Bxf4
{[%clk 0:01:16.2]} 31. Qxf4 {[%clk 0:00:16.3]} 31... Qxf4 {[%clk 0:01:14.3]} 32.
Nxf4 {[%clk 0:00:17.2]} 32... b4 {[%clk 0:01:12.2]} 33. Bd3 {[%clk 0:00:14.7]}
33... b3 {[%clk 0:01:10.3]} 34. Kc1 {[%clk 0:00:08.3]} 34... Rc5+ {[%clk
0:01:03.5]} 35. Kd2 {[%clk 0:00:08.5]} 35... Rdc8 {[%clk 0:01:04.1]} 36. Rb1
{[%clk 0:00:07.9]} 36... Ka5 {[%clk 0:01:01.7]} 37. Ne2 {[%clk 0:00:07]} 37...
Rg8 {[%clk 0:00:58.5]} 38. Rg1 {[%clk 0:00:05.3]} 38... Rcg5 {[%clk 0:00:54.2]}
39. Be4 {[%clk 0:00:05.1]} 39... d3 {[%clk 0:00:50.4]} 40. Kxd3 {[%clk
0:00:04.5]} 40... Rd8+ {[%clk 0:00:50.9]} 41. Ke3 {[%clk 0:00:04.5]} 41... Re5
{[%clk 0:00:45.5]} 42. Kf4 {[%clk 0:00:04.4]} 42... Rc5 {[%clk 0:00:43.1]} 43.
Nc3 {[%clk 0:00:04.1]} 43... Rd2 {[%clk 0:00:39.2]} 44. Rb1 {[%clk 0:00:04.6]}
44... f5 {[%clk 0:00:30.6]} 45. Bf3 {[%clk 0:00:03.4]} 45... Rc2 {[%clk
0:00:25.9]} 46. Ke3 {[%clk 0:00:03.4]} 46... Rc8 {[%clk 0:00:20.1]} 47. Nd1
{[%clk 0:00:02.4]} 47... Rc1 {[%clk 0:00:19.1]} 48. Rxc1 {[%clk 0:00:01.9]}
48... Rxc1 {[%clk 0:00:20]} 49. Kf4 {[%clk 0:00:02.5]} 49... Rc5 {[%clk
0:00:17.1]} 50. Kg5 {[%clk 0:00:02.8]} 50... Kb5 {[%clk 0:00:12.5]} 51. Kxh4
{[%clk 0:00:03.7]} 51... Kc4 {[%clk 0:00:13.1]} 52. Kg5 {[%clk 0:00:04.1]} 52...
Kd3 {[%clk 0:00:12.5]} 53. h4 {[%clk 0:00:04.4]} 53... Kd2 {[%clk 0:00:07.9]}
54. h5 {[%clk 0:00:04.8]} 54... f4+ {[%clk 0:00:06.9]} 55. Kf6 {[%clk 0:00:03]}
55... Rc6+ {[%clk 0:00:04.9]} 56. Bxc6 {[%clk 0:00:01.5]} 56... Kxd1 {[%clk
0:00:04.1]} 57. Bxa4 {[%clk 0:00:02.3]} 57... Kc2 {[%clk 0:00:05]} 58. Bxb3+
{[%clk 0:00:02.7]} 58... Kxb2 {[%clk 0:00:05.9]} 59. Kf5 {[%clk 0:00:03.1]}
59... Kxb3 {[%clk 0:00:06.8]} 60. Kxf4 {[%clk 0:00:03.5]} 60... Kxa3 {[%clk
0:00:06.7]} 61. Kg5 {[%clk 0:00:04.4]} 1-0

[Event "*** SCC Grand Prix: Titled Tuesday Blitz"]
[Site "Chess.com"]
[Date "2020.10.06"]
[Round "7"]
[White "lucachess49"]
[Black "rududuyk"]
[Result "0-1"]
[WhiteElo "2384"]
[BlackElo "2172"]
[TimeControl "180+1"]
[EndTime "11:20:37 PDT"]
[Termination "rududuyk won on time"]

1. d4 {[%clk 0:02:59.5]} 1... e6 {[%clk 0:03:00.1]} 2. c4 {[%clk 0:02:59.4]}
2... f5 {[%clk 0:03:00.4]} 3. Nc3 {[%clk 0:02:59.3]} 3... Nf6 {[%clk 0:03:01]}
4. e3 {[%clk 0:02:59.3]} 4... b6 {[%clk 0:03:00.5]} 5. f3 {[%clk 0:02:58.4]}
5... Bb7 {[%clk 0:03:00.1]} 6. Bd3 {[%clk 0:02:59]} 6... Bb4 {[%clk 0:03:00.1]}
7. Ne2 {[%clk 0:02:59]} 7... O-O {[%clk 0:02:59.3]} 8. O-O {[%clk 0:02:57.9]}
8... Qe8 {[%clk 0:02:49.8]} 9. Qc2 {[%clk 0:02:55.8]} 9... Qh5 {[%clk
0:02:45.3]} 10. a3 {[%clk 0:02:46.2]} 10... Bd6 {[%clk 0:02:43]} 11. Nf4 {[%clk
0:02:46.1]} 11... Bxf4 {[%clk 0:02:33.3]} 12. exf4 {[%clk 0:02:47]} 12... Nc6
{[%clk 0:02:32.2]} 13. Be3 {[%clk 0:02:32.7]} 13... Ne7 {[%clk 0:02:17.9]} 14.
Nb5 {[%clk 0:02:18.8]} 14... Ne8 {[%clk 0:02:10.2]} 15. c5 {[%clk 0:02:14.9]}
15... Rf6 {[%clk 0:02:06.3]} 16. cxb6 {[%clk 0:02:10.4]} 16... axb6 {[%clk
0:01:52.4]} 17. h3 {[%clk 0:01:26.7]} 17... Nd5 {[%clk 0:01:46.8]} 18. Bc1
{[%clk 0:01:25.4]} 18... Rg6 {[%clk 0:01:42.3]} 19. Kh2 {[%clk 0:01:24.1]} 19...
Qh4 {[%clk 0:01:40.5]} 20. g4 {[%clk 0:01:24.1]} 20... Rh6 {[%clk 0:01:33.9]}
21. Qg2 {[%clk 0:01:22.8]} 21... Ba6 {[%clk 0:00:56.5]} 22. Qg3 {[%clk
0:01:00.7]} 22... c6 {[%clk 0:00:44.4]} 23. Qxh4 {[%clk 0:00:45.3]} 23... Rxh4
{[%clk 0:00:44.1]} 24. Kg3 {[%clk 0:00:42]} 24... Rh6 {[%clk 0:00:42.5]} 25. g5
{[%clk 0:00:41.2]} 25... Rh5 {[%clk 0:00:41.4]} 26. a4 {[%clk 0:00:22.9]} 26...
Nb4 {[%clk 0:00:30.9]} 27. Bc4 {[%clk 0:00:19.6]} 27... Nc2 {[%clk 0:00:25.6]}
28. Ra2 {[%clk 0:00:17.5]} 28... cxb5 {[%clk 0:00:24.8]} 29. axb5 {[%clk
0:00:17]} 29... Bb7 {[%clk 0:00:25]} 30. Rxa8 {[%clk 0:00:16]} 30... Bxa8 {[%clk
0:00:25.9]} 31. Bd2 {[%clk 0:00:16.1]} 31... Nxd4 {[%clk 0:00:25.5]} 32. Ra1
{[%clk 0:00:15.9]} 32... Bxf3 {[%clk 0:00:22.9]} 33. Be3 {[%clk 0:00:14.9]}
33... Ne2+ {[%clk 0:00:14]} 34. Bxe2 {[%clk 0:00:13.9]} 34... Bxe2 {[%clk
0:00:14.9]} 35. Bxb6 {[%clk 0:00:13.1]} 35... Kf7 {[%clk 0:00:14.6]} 36. Ra5
{[%clk 0:00:12.2]} 36... Nd6 {[%clk 0:00:13.9]} 37. Be3 {[%clk 0:00:09.7]} 37...
Bxb5 {[%clk 0:00:13.8]} 38. Bc5 {[%clk 0:00:08.5]} 38... Bf1 {[%clk 0:00:12.2]}
39. Bxd6 {[%clk 0:00:08]} 39... Rxh3+ {[%clk 0:00:13.1]} 40. Kf2 {[%clk
0:00:08.3]} 40... Bc4 {[%clk 0:00:12.3]} 41. b4 {[%clk 0:00:08.5]} 41... Rh2+
{[%clk 0:00:11.5]} 42. Ke3 {[%clk 0:00:08.1]} 42... Rb2 {[%clk 0:00:12.4]} 43.
Ra7 {[%clk 0:00:07.8]} 43... Bb5 {[%clk 0:00:11.9]} 44. Ra8 {[%clk 0:00:08.1]}
44... Bc6 {[%clk 0:00:11.9]} 45. Rf8+ {[%clk 0:00:07.4]} 45... Kg6 {[%clk
0:00:12.8]} 46. Kd4 {[%clk 0:00:07.4]} 46... h6 {[%clk 0:00:12.8]} 47. gxh6
{[%clk 0:00:06.6]} 47... gxh6 {[%clk 0:00:12.6]} 48. Kc5 {[%clk 0:00:06.7]}
48... h5 {[%clk 0:00:11.7]} 49. Rb8 {[%clk 0:00:07.2]} 49... h4 {[%clk
0:00:11.6]} 50. b5 {[%clk 0:00:07.6]} 50... Bd5 {[%clk 0:00:11.7]} 51. b6 {[%clk
0:00:07.8]} 51... h3 {[%clk 0:00:11.7]} 52. Bc7 {[%clk 0:00:07.1]} 52... h2
{[%clk 0:00:10.6]} 53. Rh8 {[%clk 0:00:07.6]} 53... h1=Q {[%clk 0:00:10.5]} 54.
Rxh1 {[%clk 0:00:07.3]} 54... Bxh1 {[%clk 0:00:11.4]} 55. Kd6 {[%clk 0:00:07.8]}
55... Bc6 {[%clk 0:00:11.1]} 56. Ke7 {[%clk 0:00:08.1]} 56... Rb4 {[%clk
0:00:10.8]} 57. Kd8 {[%clk 0:00:08.2]} 57... d5 {[%clk 0:00:10.8]} 58. Ke7
{[%clk 0:00:07.6]} 58... d4 {[%clk 0:00:10.8]} 59. Kd6 {[%clk 0:00:08.3]} 59...
d3 {[%clk 0:00:10.1]} 60. Kxc6 {[%clk 0:00:07.7]} 60... d2 {[%clk 0:00:10.3]}
61. b7 {[%clk 0:00:08]} 61... Rxb7 {[%clk 0:00:09.8]} 62. Kxb7 {[%clk
0:00:07.9]} 62... d1=Q {[%clk 0:00:10.7]} 63. Be5 {[%clk 0:00:08.4]} 63... Qd5+
{[%clk 0:00:10.3]} 64. Kb6 {[%clk 0:00:08.2]} 64... Qxe5 {[%clk 0:00:10.4]} 65.
fxe5 {[%clk 0:00:07.7]} 65... f4 {[%clk 0:00:11.3]} 66. Kc5 {[%clk 0:00:08.2]}
66... Kf5 {[%clk 0:00:11.1]} 67. Kd6 {[%clk 0:00:08.7]} 67... f3 {[%clk
0:00:11]} 0-1

[Event "*** SCC Grand Prix: Titled Tuesday Blitz"]
[Site "Chess.com"]
[Date "2020.10.06"]
[Round "7"]
[White "m_ezat"]
[Black "Smile2005"]
[Result "1-0"]
[WhiteElo "2553"]
[BlackElo "2410"]
[TimeControl "180+1"]
[EndTime "11:20:41 PDT"]
[Termination "m_ezat won by checkmate"]

1. d4 {[%clk 0:02:59]} 1... Nf6 {[%clk 0:02:59.7]} 2. c4 {[%clk 0:02:55.6]} 2...
g6 {[%clk 0:03:00]} 3. Nc3 {[%clk 0:02:56.1]} 3... Bg7 {[%clk 0:03:00.3]} 4. e4
{[%clk 0:02:56.3]} 4... O-O {[%clk 0:03:00.6]} 5. Be2 {[%clk 0:02:53.7]} 5... d6
{[%clk 0:03:00.8]} 6. Bg5 {[%clk 0:02:53.8]} 6... h6 {[%clk 0:03:01]} 7. Be3
{[%clk 0:02:52.9]} 7... e5 {[%clk 0:03:00.7]} 8. d5 {[%clk 0:02:52.4]} 8... a5
{[%clk 0:02:59.9]} 9. Qd2 {[%clk 0:02:52.2]} 9... Kh7 {[%clk 0:02:59.9]} 10. h4
{[%clk 0:02:51.1]} 10... h5 {[%clk 0:02:58.2]} 11. f3 {[%clk 0:02:49.1]} 11...
c6 {[%clk 0:02:57]} 12. Nh3 {[%clk 0:02:49.3]} 12... cxd5 {[%clk 0:02:57]} 13.
cxd5 {[%clk 0:02:50.1]} 13... Na6 {[%clk 0:02:56]} 14. Nf2 {[%clk 0:02:50.5]}
14... Nc5 {[%clk 0:02:55.9]} 15. g4 {[%clk 0:02:50.7]} 15... a4 {[%clk
0:02:53.4]} 16. Bg5 {[%clk 0:02:50.8]} 16... Qa5 {[%clk 0:02:52.5]} 17. Bxf6
{[%clk 0:02:50]} 17... Bxf6 {[%clk 0:02:52.7]} 18. gxh5 {[%clk 0:02:50.7]} 18...
gxh5 {[%clk 0:02:53]} 19. Nh3 {[%clk 0:02:45.3]} 19... Bxh3 {[%clk 0:02:51.2]}
20. Rxh3 {[%clk 0:02:44]} 20... Rg8 {[%clk 0:02:51.4]} 21. Rh1 {[%clk 0:02:16]}
21... a3 {[%clk 0:02:51.1]} 22. b3 {[%clk 0:02:13.1]} 22... Rac8 {[%clk
0:02:42.9]} 23. Nb5 {[%clk 0:02:05.8]} 23... Qb6 {[%clk 0:02:12.8]} 24. Nxa3
{[%clk 0:02:03.9]} 24... Bg7 {[%clk 0:02:01.1]} 25. Nc4 {[%clk 0:02:00.4]} 25...
Qd8 {[%clk 0:01:56]} 26. Qg5 {[%clk 0:01:59.4]} 26... Bh6 {[%clk 0:01:53.6]} 27.
Qxh5 {[%clk 0:01:50.4]} 27... Qf6 {[%clk 0:01:50.9]} 28. Qf5+ {[%clk 0:01:38.9]}
28... Qxf5 {[%clk 0:01:49.8]} 29. exf5 {[%clk 0:01:39.6]} 29... Rcd8 {[%clk
0:01:39.8]} 30. Kf2 {[%clk 0:01:38.9]} 30... b6 {[%clk 0:01:39.5]} 31. Rag1
{[%clk 0:01:34.2]} 31... b5 {[%clk 0:01:39]} 32. Rxg8 {[%clk 0:01:33.3]} 32...
Kxg8 {[%clk 0:01:39.1]} 33. Ne3 {[%clk 0:01:31]} 33... Bxe3+ {[%clk 0:01:38.5]}
34. Kxe3 {[%clk 0:01:30.7]} 34... b4 {[%clk 0:01:38.7]} 35. f6 {[%clk
0:01:25.1]} 35... Ra8 {[%clk 0:01:29.7]} 36. Rg1+ {[%clk 0:01:25.1]} 36... Kf8
{[%clk 0:01:29.7]} 37. h5 {[%clk 0:01:25]} 37... Nd7 {[%clk 0:01:27]} 38. h6
{[%clk 0:01:12.3]} 38... Nxf6 {[%clk 0:01:27]} 39. Rc1 {[%clk 0:01:11.8]} 39...
Nxd5+ {[%clk 0:01:01.7]} 40. Kf2 {[%clk 0:00:53.6]} 40... Nc3 {[%clk 0:00:58.5]}
41. Bd3 {[%clk 0:00:49.2]} 41... Rxa2+ {[%clk 0:00:57.3]} 42. Kg3 {[%clk
0:00:47.4]} 42... Ra8 {[%clk 0:00:30.8]} 43. Kh3 {[%clk 0:00:44.1]} 43... d5
{[%clk 0:00:29.2]} 44. Rg1 {[%clk 0:00:39.5]} 44... e4 {[%clk 0:00:29.3]} 45.
fxe4 {[%clk 0:00:39.3]} 45... dxe4 {[%clk 0:00:29.4]} 46. h7 {[%clk 0:00:39.5]}
46... Ke7 {[%clk 0:00:28]} 47. Rg8 {[%clk 0:00:37.3]} 47... Ra1 {[%clk
0:00:27.5]} 48. Kh2 {[%clk 0:00:28]} 48... exd3 {[%clk 0:00:09.4]} 49. h8=Q
{[%clk 0:00:27.1]} 49... d2 {[%clk 0:00:09.3]} 50. Qe5+ {[%clk 0:00:26.8]} 50...
Kd7 {[%clk 0:00:09.6]} 51. Qd4+ {[%clk 0:00:24.1]} 51... Kc7 {[%clk 0:00:08.2]}
52. Qc5+ {[%clk 0:00:20.5]} 52... Kd7 {[%clk 0:00:07.6]} 53. Qc8+ {[%clk
0:00:20.6]} 53... Ke7 {[%clk 0:00:05.8]} 54. Re8+ {[%clk 0:00:18.6]} 54... Kf6
{[%clk 0:00:05.7]} 55. Qc6+ {[%clk 0:00:18.6]} 55... Kg7 {[%clk 0:00:05.5]} 56.
Qg2+ {[%clk 0:00:18]} 56... Kf6 {[%clk 0:00:05.6]} 57. Qf2+ {[%clk 0:00:17.4]}
57... Kg7 {[%clk 0:00:05.9]} 58. Qg3+ {[%clk 0:00:17.6]} 58... Kf6 {[%clk
0:00:06]} 59. Qe5+ {[%clk 0:00:17.6]} 59... Kg6 {[%clk 0:00:05.9]} 60. Rg8+
{[%clk 0:00:18.2]} 60... Kh7 {[%clk 0:00:06.2]} 61. Qg7# {[%clk 0:00:17.5]} 1-0

[Event "*** SCC Grand Prix: Titled Tuesday Blitz"]
[Site "Chess.com"]
[Date "2020.10.06"]
[Round "7"]
[White "Semetey"]
[Black "NMZanette"]
[Result "1-0"]
[WhiteElo "2488"]
[BlackElo "2238"]
[TimeControl "180+1"]
[EndTime "11:20:43 PDT"]
[Termination "Semetey won on time"]

1. d4 {[%clk 0:03:00.9]} 1... f5 {[%clk 0:02:58.8]} 2. c4 {[%clk 0:03:01.5]}
2... Nf6 {[%clk 0:02:58.6]} 3. Nc3 {[%clk 0:03:01.8]} 3... e6 {[%clk 0:02:58.3]}
4. Nf3 {[%clk 0:02:57.3]} 4... b6 {[%clk 0:02:58.1]} 5. a3 {[%clk 0:02:42.8]}
5... Bb7 {[%clk 0:02:56.6]} 6. d5 {[%clk 0:02:42]} 6... Be7 {[%clk 0:02:41.8]}
7. Nd4 {[%clk 0:02:23.7]} 7... Qc8 {[%clk 0:02:33.7]} 8. e3 {[%clk 0:01:42.9]}
8... O-O {[%clk 0:02:32.6]} 9. Be2 {[%clk 0:01:42.8]} 9... g6 {[%clk 0:02:26.9]}
10. dxe6 {[%clk 0:01:29.5]} 10... dxe6 {[%clk 0:02:26.5]} 11. Bf3 {[%clk
0:01:29.8]} 11... e5 {[%clk 0:02:20.4]} 12. Bxb7 {[%clk 0:01:18.6]} 12... Qxb7
{[%clk 0:02:17.2]} 13. Nf3 {[%clk 0:01:18.2]} 13... Rd8 {[%clk 0:02:09.6]} 14.
Qb3 {[%clk 0:01:17.1]} 14... c5 {[%clk 0:01:47.4]} 15. O-O {[%clk 0:01:00.2]}
15... Nc6 {[%clk 0:01:46.3]} 16. Nd5 {[%clk 0:00:59]} 16... Nxd5 {[%clk
0:01:44]} 17. cxd5 {[%clk 0:00:59.9]} 17... Na5 {[%clk 0:01:43.9]} 18. Qc3
{[%clk 0:01:00.3]} 18... Qxd5 {[%clk 0:01:41.5]} 19. Nxe5 {[%clk 0:00:59.8]}
19... Bf6 {[%clk 0:01:39.5]} 20. f4 {[%clk 0:00:58.2]} 20... Nc6 {[%clk
0:01:37]} 21. e4 {[%clk 0:00:43.2]} 21... Qxe4 {[%clk 0:01:29]} 22. Qb3+ {[%clk
0:00:43.2]} 22... c4 {[%clk 0:01:20.4]} 23. Nxc4 {[%clk 0:00:40]} 23... Nd4
{[%clk 0:00:58.6]} 24. Qa2 {[%clk 0:00:36.6]} 24... Kg7 {[%clk 0:00:58.8]} 25.
Bd2 {[%clk 0:00:31.7]} 25... Ne2+ {[%clk 0:00:58.4]} 26. Kh1 {[%clk 0:00:31.5]}
26... Rac8 {[%clk 0:00:57]} 27. b3 {[%clk 0:00:25.2]} 27... b5 {[%clk 0:00:53]}
28. Rae1 {[%clk 0:00:21.1]} 28... bxc4 {[%clk 0:00:51.6]} 29. Ba5 {[%clk
0:00:21.2]} 29... Re8 {[%clk 0:00:50.9]} 30. Rf2 {[%clk 0:00:19.9]} 30... Ng3+
{[%clk 0:00:49.7]} 31. hxg3 {[%clk 0:00:20.2]} 31... Qd4 {[%clk 0:00:38.9]} 32.
Rfe2 {[%clk 0:00:16.2]} 32... Rxe2 {[%clk 0:00:37]} 33. Rxe2 {[%clk 0:00:16.6]}
33... c3 {[%clk 0:00:36.5]} 34. Qc2 {[%clk 0:00:16.2]} 34... Rc5 {[%clk
0:00:33.4]} 35. Bb4 {[%clk 0:00:15.2]} 35... Rd5 {[%clk 0:00:32.7]} 36. Kh2
{[%clk 0:00:13.7]} 36... h5 {[%clk 0:00:31.1]} 37. Be7 {[%clk 0:00:13.3]} 37...
h4 {[%clk 0:00:28.9]} 38. Bxf6+ {[%clk 0:00:13.1]} 38... Qxf6 {[%clk 0:00:28]}
39. Re3 {[%clk 0:00:12.7]} 39... Rd2 {[%clk 0:00:25.8]} 40. Qxc3 {[%clk
0:00:12.8]} 40... hxg3+ {[%clk 0:00:25.2]} 41. Kxg3 {[%clk 0:00:13.7]} 41...
Qxc3 {[%clk 0:00:21.4]} 42. Rxc3 {[%clk 0:00:14.6]} 42... Rd7 {[%clk 0:00:21.2]}
43. b4 {[%clk 0:00:15.1]} 43... a5 {[%clk 0:00:15.8]} 44. bxa5 {[%clk
0:00:14.5]} 44... Ra7 {[%clk 0:00:16.3]} 45. Rc5 {[%clk 0:00:15.1]} 45... Kf7
{[%clk 0:00:14.7]} 46. Kh4 {[%clk 0:00:15.5]} 46... Ke6 {[%clk 0:00:14.9]} 47.
Kg5 {[%clk 0:00:16.1]} 47... Kd6 {[%clk 0:00:14.2]} 48. Rb5 {[%clk 0:00:17]}
48... Kc6 {[%clk 0:00:11.7]} 49. Rb6+ {[%clk 0:00:17.5]} 49... Kd5 {[%clk
0:00:11.1]} 50. Rxg6 {[%clk 0:00:17.5]} 50... Rxa5 {[%clk 0:00:08.1]} 51. Kxf5
{[%clk 0:00:18]} 51... Rxa3 {[%clk 0:00:07.3]} 52. g4 {[%clk 0:00:18.5]} 52...
Ra5 {[%clk 0:00:06.7]} 53. g5 {[%clk 0:00:19]} 53... Kd4+ {[%clk 0:00:06.6]} 54.
Kg4 {[%clk 0:00:19.6]} 54... Ra1 {[%clk 0:00:04.8]} 55. Rd6+ {[%clk 0:00:19.4]}
55... Ke4 {[%clk 0:00:03.7]} 56. Re6+ {[%clk 0:00:19.8]} 56... Kd5 {[%clk
0:00:03.4]} 57. Re5+ {[%clk 0:00:20.3]} 57... Kd6 {[%clk 0:00:04]} 58. g6 {[%clk
0:00:20.9]} 58... Rg1+ {[%clk 0:00:03.9]} 59. Kf5 {[%clk 0:00:21.5]} 59... Rg2
{[%clk 0:00:01.5]} 60. Kf6 {[%clk 0:00:21.6]} 60... Kd7 {[%clk 0:00:01.9]} 61.
f5 {[%clk 0:00:21.4]} 1-0